[Event "4NCL Div 1 2018-19"]
[Site "Telford"]
[Date "2019.02.10"]
[Round "6.11"]
[White "Franklin, Samuel G A"]
[Black "Haria, Ravi"]
[Result "1/2-1/2"]
[ECO "C18"]
[WhiteElo "2316"]
[BlackElo "2436"]
[Annotator "NA"]
[PlyCount "95"]
[EventDate "2018.11.10"]
[EventType "team-tourn"]
[EventCountry "GBR"]
[SourceTitle "playchess.com"]
[Source "ChessBase"]
[SourceQuality "1"]
[TimeControl "40/6000+30:3000+30"]

1. e4 {[%emt 0:00:00]} e6 {[%emt 0:05:55]} 2. d4 {[%emt 0:00:00]} d5 {[%emt 0:00:06]} 3. Nc3 {[%emt 0:00:34]} Bb4 {[%emt 0:00:11]} 4. e5 {[%emt 0:00:54]} c5 {[%emt 0:00:05]} 5. a3 {[%emt 0:00:53]} Ba5 {[%emt 0:00:06]} 6. b4 {[%emt 0:01:32]} cxd4 {[%emt 0:00:13]} 7. Qg4 {[%emt 0:00:58]} Kf8 {[%emt 0:01:30]} 8. Nb5 {[%emt 0:01:49]} Bb6 {[%emt 0:01:10]} 9. Nf3 {[%emt 0:01:02]} Nc6 {[%emt 0:00:41]} 10. Bb2 {[%emt 0:03:32]} Nge7 {[%emt 0:01:11]} 11. Nbxd4 {[%emt 0:03:15]} h5 {[%emt 0:05:31]} 12. Qf4 {[%emt 0:02:23]} Ng6 {[%emt 0:05:51]} 13. Nxc6 {[%emt 0:01:28]} bxc6 {[%emt 0:00:29]} 14. Qd2 {[%emt 0:00:40]} Nh4 {[%emt 0:06:19]} 15. Ng5 {[%emt 0:31:24]} Qe7 {[%emt 0:07:53]} 16. Qf4 {[%emt 0:13:54]} Ng6 {[%emt 0:02:22]} 17. Qg3 {[%emt 0:01:27]} Bd8 {[%emt 0:14:51]} 18. Nf3 {[%emt 0:02:39]} a5 {[%emt 0:00:56]} 19. Bd3 {[%emt 0:11:10]} Ba6 {[%emt 0:11:13]} 20. O-O {[%emt 0:02:03]} Qd7 {[%emt 0:20:02]} 21. Rfe1 {[%emt 0:04:10]} Bxd3 {[%emt 0:06:45]} 22. cxd3 {[%emt 0:00:03]} Ne7 {[%emt 0:00:07]} 23. Nd4 {[%emt 0:04:59]} Bb6 {[%emt 0:05:11]} 24. Qf4 {[%emt 0:04:49]} h4 {[%emt 0:01:45]} 25. Bc3 {[%emt 0:02:38]} a4 {[%emt 0:02:55]} 26. Rac1 {[%emt 0:01:08]} Rh5 {[%emt 0:01:17]} 27. Qg4 {[%emt 0:01:00]} g6 {[%emt 0:00:56]} 28. Nf3 {[%emt 0:03:19]} Nf5 {[%emt 0:01:05]} 29. d4 {[%emt 0:02:08]} Kg7 {[%emt 0:02:19]} 30. Bd2 {[%emt 0:01:44]} Qa7 {[%emt 0:01:31]} 31. Be3 {[%emt 0:00:55]} Rc8 {[%emt 0:00:58]} 32. h3 {[%emt 0:01:14]} Bd8 {[%emt 0:00:33]} 33. Rc3 {[%emt 0:00:39]} Qa6 {[%emt 0:01:32]} 34. Nd2 {[%emt 0:01:34]} Bb6 {[%emt 0:02:24]} 35. Rec1 {[%emt 0:00:34]} Qb5 {[%emt 0:00:16]} 36. R1c2 {[%emt 0:00:37]} Ba7 {[%emt 0:00:42]} 37. Nf3 {[%emt 0:00:25]} Kg8 {[%emt 0:00:28]} 38. Ne1 {[%emt 0:00:50]} Qb6 {[%emt 0:00:45]} 39. Nf3 {[%emt 0:00:23]} Kg7 {[%emt 0:00:40]} 40. Rc5 {[%emt 0:01:53]} Qa6 {[%emt 0:00:41]} 41. b5 {[%emt 0:19:16]} Qb7 {[%emt 0:09:05]} 42. bxc6 {[%emt 0:04:06]} Qb1+ {[%emt 0:02:47]} 43. Rc1 {[%emt 0:00:39]} Qb2 {[%emt 0:00:13]} 44. R5c3 {[%emt 0:01:03]} Bb6 {[%emt 0:00:46]} 45. R1c2 {[%emt 0:03:55]} Qb1+ {[%emt 0:04:37]} 46. Rc1 {[%emt 0:00:28]} Qb2 {[%emt 0:00:06]} 47. R1c2 {[%emt 0:05:23]} Qb1+ {[%emt 0:03:21]} 48. Rc1 {[%emt 0:00:19]} 1/2-1/2

[Event "4NCL Div 1 2018-19"]
[Site "Telford"]
[Date "2019.02.10"]
[Round "6.12"]
[White "Harvey, Marcus R"]
[Black "Pigott, John C"]
[Result "1/2-1/2"]
[ECO "A06"]
[WhiteElo "2399"]
[BlackElo "2388"]
[Annotator "NA"]
[PlyCount "107"]
[EventDate "2018.11.10"]
[EventType "team-tourn"]
[EventCountry "GBR"]
[SourceTitle "playchess.com"]
[Source "ChessBase"]
[SourceQuality "1"]
[TimeControl "40/6000+30:3000+30"]

1. Nf3 {[%emt 1:10:53]} d5 {[%emt 0:00:45]} 2. b3 {[%emt 0:00:06]} c5 {[%emt 0:00:41]} 3. e3 {[%emt 0:00:04]} a6 {[%emt 0:03:34]} 4. Bb2 {[%emt 0:00:29]} Nc6 {[%emt 0:00:10]} 5. Be2 {[%emt 0:00:06]} d4 {[%emt 0:01:43]} 6. exd4 {[%emt 0:04:45]} cxd4 {[%emt 0:00:07]} 7. O-O {[%emt 0:00:03]} g6 {[%emt 0:15:37]} 8. Re1 {[%emt 0:02:35]} Bg7 {[%emt 0:00:39]} 9. Bf1 {[%emt 0:01:42]} Nh6 {[%emt 0:12:20]} 10. d3 {[%emt 0:01:15]} O-O {[%emt 0:01:48]} 11. Nbd2 {[%emt 0:00:07]} Qc7 {[%emt 0:03:52]} 12. a4 {[%emt 0:04:53]} Be6 {[%emt 0:06:32]} 13. Ne4 {[%emt 0:01:01]} Bd5 {[%emt 0:02:59]} 14. a5 {[%emt 0:02:56]} Rfd8 {[%emt 0:04:55]} 15. Ra4 {[%emt 0:00:05]} e5 {[%emt 0:03:14]} 16. Qa1 {[%emt 0:00:36]} Rac8 {[%emt 0:02:57]} 17. Bc1 {[%emt 0:01:31]} f5 {[%emt 0:04:37]} 18. Ng3 {[%emt 0:10:57]} Bxf3 {[%emt 0:07:54]} 19. gxf3 {[%emt 0:00:12]} Nf7 {[%emt 0:00:07]} 20. Bd2 {[%emt 0:01:03]} Bh6 {[%emt 0:00:53]} 21. Bxh6 {[%emt 0:00:55]} Nxh6 {[%emt 0:00:02]} 22. Qc1 {[%emt 0:00:46]} Nf7 {[%emt 0:00:12]} 23. Qd2 {[%emt 0:00:12]} Ne7 {[%emt 0:08:07]} 24. Rc4 {[%emt 0:02:06]} Qd6 {[%emt 0:00:22]} 25. c3 {[%emt 0:03:59]} Rxc4 {[%emt 0:05:43]} 26. dxc4 {[%emt 0:04:57]} Nc6 {[%emt 0:02:34]} 27. b4 {[%emt 0:01:11]} dxc3 {[%emt 0:00:34]} 28. Qxc3 {[%emt 0:00:06]} Ng5 {[%emt 0:06:07]} 29. c5 {[%emt 0:09:02]} Qd2 {[%emt 0:04:39]} 30. Qxd2 {[%emt 0:05:37]} Rxd2 {[%emt 0:02:45]} 31. Kg2 {[%emt 0:03:12]} Kg7 {[%emt 0:00:44]} 32. b5 {[%emt 0:00:20]} axb5 {[%emt 0:00:10]} 33. Bxb5 {[%emt 0:04:23]} Nd4 {[%emt 0:00:24]} 34. Rb1 {[%emt 0:01:43]} Nge6 {[%emt 0:06:11]} 35. Bc4 {[%emt 0:00:46]} Nxc5 {[%emt 0:01:11]} 36. Nf1 {[%emt 0:00:09]} Rc2 {[%emt 0:00:44]} 37. Ne3 {[%emt 0:00:04]} Rc3 {[%emt 0:00:20]} 38. Bd5 {[%emt 0:00:05]} Ndb3 {[%emt 0:01:49]} 39. Nd1 {[%emt 0:07:15]} Rd3 {[%emt 0:00:10]} 40. Bc4 {[%emt 0:00:17]} Rd7 {[%emt 0:00:56]} 41. Bxb3 {[%emt 0:00:05]} Nxb3 {[%emt 0:00:05]} 42. Rxb3 {[%emt 0:00:04]} Rxd1 {[%emt 0:00:04]} 43. Rxb7+ {[%emt 0:00:04]} Kf6 {[%emt 0:05:31]} 44. Rxh7 {[%emt 0:01:09]} Ra1 {[%emt 0:00:05]} 45. Ra7 {[%emt 0:00:03]} Kg5 {[%emt 0:00:34]} 46. Ra8 {[%emt 0:02:27]} Ra3 {[%emt 0:08:59]} 47. a6 {[%emt 0:01:09]} Kf4 {[%emt 0:00:29]} 48. h4 {[%emt 0:00:06]} Ra2 {[%emt 0:04:08]} 49. a7 {[%emt 0:02:49]} Ra1 {[%emt 0:00:24]} 50. Rb8 {[%emt 0:00:43]} Rxa7 {[%emt 0:00:09]} 51. Rb4+ {[%emt 0:00:17]} e4 {[%emt 0:00:12]} 52. fxe4 {[%emt 0:00:24]} fxe4 {[%emt 0:00:05]} 53. Rb6 {[%emt 0:00:20]} Rh7 {[%emt 0:02:11]} 54. Rf6+ {[%emt 0:00:56]} 1/2-1/2

[Event "4NCL Div 1 2018-19"]
[Site "Telford"]
[Date "2019.02.10"]
[Round "6.12"]
[White "Ashton, Adam G"]
[Black "Hawkins, Jonathan"]
[Result "0-1"]
[ECO "A01"]
[WhiteElo "2332"]
[BlackElo "2579"]
[Annotator "ChessBase"]
[PlyCount "88"]
[EventDate "2018.11.10"]
[EventType "team-tourn"]
[EventCountry "GBR"]
[SourceTitle "playchess.com"]
[Source "ChessBase"]
[SourceQuality "1"]
[TimeControl "40/6000+30:3000+30"]

1. b3 {[%emt 0:05:54]} e5 {[%emt 0:00:52]} 2. Bb2 {[%emt 0:00:05]} Nc6 {[%emt 0:00:08]} 3. e3 {[%emt 0:02:11]} d5 {[%emt 0:00:23]} 4. Bb5 {[%emt 0:02:49]} Bd6 {[%emt 0:00:10]} 5. f4 {[%emt 0:14:05]} Qh4+ {[%emt 0:00:50]} 6. g3 {[%emt 0:00:06]} Qe7 {[%emt 0:00:06]} 7. Nf3 {[%emt 0:05:13]} f6 {[%emt 0:00:21]} 8. Nc3 {[%emt 0:20:54]} Be6 {[%emt 0:03:14]} 9. Qe2 {[%emt 0:04:41]} Nh6 {[%emt 0:13:31]} 10. O-O-O {[%emt 0:02:24]} a6 {[%emt 0:05:11]} 11. Bxc6+ {[%emt 0:00:29]} bxc6 {[%emt 0:00:06]} 12. h3 {[%emt 0:04:03]} Nf5 {[%emt 0:03:52]} 13. Qg2 {[%emt 0:04:14]} e4 {[%emt 0:03:56]} 14. Nh4 {[%emt 0:05:06]} Nh6 {[%emt 0:29:00]} 15. g4 {[%emt 0:04:06]} Nf7 {[%emt 0:02:22]} 16. Ne2 {[%emt 0:04:31]} Ba3 {[%emt 0:08:54]} 17. Nd4 {[%emt 0:02:18]} O-O {[%emt 0:05:53]} 18. Nhf5 {[%emt 0:02:25]} Bxf5 {[%emt 0:00:51]} 19. Nxf5 {[%emt 0:03:58]} Qc5 {[%emt 0:01:09]} 20. h4 {[%emt 0:07:50]} Nd6 {[%emt 0:02:20]} 21. Nxd6 {[%emt 0:00:25]} cxd6 {[%emt 0:00:16]} 22. d4 {[%emt 0:06:03]} exd3 {[%emt 0:01:16]} 23. Rxd3 {[%emt 0:00:02]} Rfe8 {[%emt 0:01:28]} 24. Qd2 {[%emt 0:00:20]} Re4 {[%emt 0:02:16]} 25. Bxa3 {[%emt 0:01:58]} Qxa3+ {[%emt 0:03:34]} 26. Kb1 {[%emt 0:00:02]} Qc5 {[%emt 0:05:50]} 27. Rc3 {[%emt 0:01:29]} Qb6 {[%emt 0:01:16]} 28. g5 {[%emt 0:00:12]} f5 {[%emt 0:00:25]} 29. h5 {[%emt 0:00:37]} Rae8 {[%emt 0:00:15]} 30. Rh3 {[%emt 0:00:24]} a5 {[%emt 0:03:41]} 31. h6 {[%emt 0:00:12]} g6 {[%emt 0:00:05]} 32. Rd3 {[%emt 0:01:44]} a4 {[%emt 0:05:18]} 33. Qc3 {[%emt 0:00:39]} R8e7 {[%emt 0:00:10]} 34. Rh1 {[%emt 0:01:05]} Qc5 {[%emt 0:02:23]} 35. Qf6 {[%emt 0:01:44]} R4e6 {[%emt 0:01:03]} 36. Qb2 {[%emt 0:01:38]} a3 {[%emt 0:01:22]} 37. b4 {[%emt 0:01:56]} axb2 {[%emt 0:00:37]} 38. bxc5 {[%emt 0:00:02]} dxc5 {[%emt 0:00:09]} 39. Kxb2 {[%emt 0:00:51]} Rxe3 {[%emt 0:00:42]} 40. Kc3 {[%emt 0:00:38]} R3e4 {[%emt 0:01:00]} 41. Rf3 {[%emt 0:04:41]} Ra7 {[%emt 0:02:52]} 42. Rb1 {[%emt 0:01:22]} Rxa2 {[%emt 0:00:06]} 43. Rb8+ {[%emt 0:01:22]} Kf7 {[%emt 0:00:06]} 44. Kb3 {[%emt 0:02:44]} Rea4 {[%emt 0:03:36]} 0-1

[Event "4NCL Div 1 2018-19"]
[Site "Telford"]
[Date "2019.02.10"]
[Round "6.13"]
[White "Eggleston, David J"]
[Black "Abbas, Daniel"]
[Result "1-0"]
[ECO "B82"]
[WhiteElo "2408"]
[BlackElo "2281"]
[Annotator "NA"]
[PlyCount "115"]
[EventDate "2018.11.10"]
[EventType "team-tourn"]
[EventCountry "GBR"]
[SourceTitle "playchess.com"]
[Source "ChessBase"]
[SourceQuality "1"]
[TimeControl "40/6000+30:3000+30"]

1. e4 {[%emt 0:06:13]} c5 {[%emt 0:00:00]} 2. Nf3 {[%emt 0:00:05]} e6 {[%emt 0:00:00]} 3. d4 {[%emt 0:00:14]} cxd4 {[%emt 0:00:00]} 4. Nxd4 {[%emt 0:00:04]} a6 {[%emt 0:00:10]} 5. Nc3 {[%emt 0:00:12]} Qc7 {[%emt 0:00:08]} 6. Bd3 {[%emt 0:00:07]} Nf6 {[%emt 0:00:05]} 7. O-O {[%emt 0:00:59]} d6 {[%emt 0:00:12]} 8. f4 {[%emt 0:00:13]} Nbd7 {[%emt 0:00:32]} 9. Kh1 {[%emt 0:00:28]} Be7 {[%emt 0:05:05]} 10. Qe2 {[%emt 0:00:19]} b5 {[%emt 0:06:06]} 11. Bd2 {[%emt 0:00:27]} O-O {[%emt 0:06:36]} 12. b4 {[%emt 0:00:52]} Bb7 {[%emt 0:03:01]} 13. a4 {[%emt 0:00:57]} bxa4 {[%emt 0:00:43]} 14. Rxa4 {[%emt 0:00:22]} Qb6 {[%emt 0:12:00]} 15. Nb3 {[%emt 0:07:11]} e5 {[%emt 0:12:18]} 16. Na5 {[%emt 0:02:36]} Bc8 {[%emt 0:02:11]} 17. Nd5 {[%emt 0:11:35]} Nxd5 {[%emt 0:00:09]} 18. exd5 {[%emt 0:00:12]} Bf6 {[%emt 0:04:51]} 19. Qe4 {[%emt 0:09:48]} g6 {[%emt 0:02:41]} 20. fxe5 {[%emt 0:01:55]} Bxe5 {[%emt 0:00:22]} 21. Nc4 {[%emt 0:01:00]} Qc7 {[%emt 0:00:35]} 22. Bh6 {[%emt 0:06:15]} f5 {[%emt 0:04:06]} 23. Qh4 {[%emt 0:00:43]} Rf7 {[%emt 0:04:09]} 24. b5 {[%emt 0:17:28]} Bb7 {[%emt 0:08:01]} 25. bxa6 {[%emt 0:15:50]} Bxd5 {[%emt 0:02:26]} 26. Ne3 {[%emt 0:02:23]} Be6 {[%emt 0:02:45]} 27. Bc4 {[%emt 0:01:39]} Bxc4 {[%emt 0:05:30]} 28. Nxc4 {[%emt 0:04:48]} Bf6 {[%emt 0:09:25]} 29. Qg3 {[%emt 0:06:19]} Qc6 {[%emt 0:03:57]} 30. Qa3 {[%emt 0:05:03]} Nc5 {[%emt 0:02:50]} 31. Rb4 {[%emt 0:02:51]} Qxa6 {[%emt 0:04:41]} 32. Qxa6 {[%emt 0:01:08]} Nxa6 {[%emt 0:00:08]} 33. Ra4 {[%emt 0:00:07]} Nc7 {[%emt 0:02:37]} 34. Rxa8+ {[%emt 0:00:21]} Nxa8 {[%emt 0:00:06]} 35. Rb1 {[%emt 0:01:02]} Bg7 {[%emt 0:00:12]} 36. Bf4 {[%emt 0:03:35]} d5 {[%emt 0:02:14]} 37. Ne5 {[%emt 0:00:41]} Rf8 {[%emt 0:00:59]} 38. Nd7 {[%emt 0:01:21]} Rc8 {[%emt 0:01:25]} 39. h3 {[%emt 0:01:08]} h6 {[%emt 0:02:47]} 40. Rb7 {[%emt 0:00:38]} g5 {[%emt 0:00:58]} 41. Be5 {[%emt 0:05:25]} Rd8 {[%emt 0:12:54]} 42. Nf6+ {[%emt 0:09:16]} Kh8 {[%emt 0:05:05]} 43. c3 {[%emt 0:00:58]} Rc8 {[%emt 0:04:40]} 44. Rd7 {[%emt 0:02:59]} Rf8 {[%emt 0:05:17]} 45. Nh7 {[%emt 0:01:15]} Rg8 {[%emt 0:00:37]} 46. Nf8 {[%emt 0:00:10]} Nb6 {[%emt 0:02:46]} 47. Rxg7 {[%emt 0:02:31]} Rxg7 {[%emt 0:00:20]} 48. Ne6 {[%emt 0:00:05]} f4 {[%emt 0:01:09]} 49. Bxg7+ {[%emt 0:00:19]} Kh7 {[%emt 0:00:10]} 50. Bd4 {[%emt 0:00:14]} Nd7 {[%emt 0:00:12]} 51. Nc7 {[%emt 0:00:18]} Kg6 {[%emt 0:00:14]} 52. Nxd5 {[%emt 0:00:14]} Kf5 {[%emt 0:00:12]} 53. Kg1 {[%emt 0:01:17]} h5 {[%emt 0:00:11]} 54. Kf2 {[%emt 0:00:31]} g4 {[%emt 0:00:10]} 55. h4 {[%emt 0:00:13]} Nf8 {[%emt 0:00:37]} 56. g3 {[%emt 0:04:08]} fxg3+ {[%emt 0:01:50]} 57. Kxg3 {[%emt 0:00:13]} Ng6 {[%emt 0:00:22]} 58. Bg7 {[%emt 0:01:07]} 1-0

[Event "4NCL Div 1 2018-19"]
[Site "Telford"]
[Date "2019.02.10"]
[Round "6.13"]
[White "D'Costa, Lorin A R"]
[Black "Fernandez, Daniel Howard"]
[Result "1/2-1/2"]
[ECO "A41"]
[WhiteElo "2402"]
[BlackElo "2471"]
[Annotator "RC"]
[PlyCount "67"]
[EventDate "2018.11.10"]
[EventType "team-tourn"]
[EventCountry "GBR"]
[SourceTitle "playchess.com"]
[Source "ChessBase"]
[SourceQuality "1"]
[TimeControl "40/6000+30:3000+30"]

1. Nf3 {[%emt 0:05:22]} d6 {[%emt 0:06:51]} 2. d4 {[%emt 0:06:25]} g6 {[%emt 0:02:43]} 3. g3 {[%emt 0:00:33]} Bg7 {[%emt 0:00:03]} 4. Bg2 {[%emt 0:00:10]} e5 {[%emt 0:01:02]} 5. Nc3 {[%emt 0:03:57]} h6 {[%emt 0:02:36]} 6. dxe5 {[%emt 0:07:08]} dxe5 {[%emt 0:00:04]} 7. Qxd8+ {[%emt 0:00:15]} Kxd8 {[%emt 0:00:03]} 8. Be3 {[%emt 0:00:13]} Ne7 {[%emt 0:01:54]} 9. O-O-O+ {[%emt 0:00:33]} Nd7 {[%emt 0:00:03]} 10. h4 {[%emt 0:08:19]} f5 {[%emt 0:07:55]} 11. a4 {[%emt 0:16:46]} c6 {[%emt 0:01:26]} 12. Nd2 {[%emt 0:05:41]} Kc7 {[%emt 0:00:43]} 13. a5 {[%emt 0:00:24]} Rf8 {[%emt 0:03:20]} 14. Nc4 {[%emt 0:07:02]} f4 {[%emt 0:00:09]} 15. gxf4 {[%emt 0:08:33]} exf4 {[%emt 0:00:31]} 16. Bd4 {[%emt 0:00:45]} Bf6 {[%emt 0:06:47]} 17. e3 {[%emt 0:07:23]} Bxd4 {[%emt 0:04:30]} 18. exd4 {[%emt 0:04:16]} Nf6 {[%emt 0:05:34]} 19. Rhe1 {[%emt 0:09:34]} Ned5 {[%emt 0:03:44]} 20. Nxd5+ {[%emt 0:02:25]} Nxd5 {[%emt 0:03:33]} 21. Rd3 {[%emt 0:09:26]} Bf5 {[%emt 0:07:25]} 22. Rb3 {[%emt 0:00:05]} Rad8 {[%emt 0:02:50]} 23. Ne5 {[%emt 0:01:24]} Rfe8 {[%emt 0:10:07]} 24. Rd1 {[%emt 0:00:07]} a6 {[%emt 0:03:53]} 25. Bf3 {[%emt 0:01:01]} Nf6 {[%emt 0:02:16]} 26. Rc3 {[%emt 0:03:06]} Be4 {[%emt 0:01:21]} 27. Bxe4 {[%emt 0:01:40]} Nxe4 {[%emt 0:00:04]} 28. Rf3 {[%emt 0:00:08]} g5 {[%emt 0:00:08]} 29. c3 {[%emt 0:00:43]} Nd6 {[%emt 0:22:43]} 30. b4 {[%emt 0:00:49]} Re7 {[%emt 0:02:56]} 31. hxg5 {[%emt 0:00:36]} hxg5 {[%emt 0:00:25]} 32. Rg1 {[%emt 0:00:24]} Ne4 {[%emt 0:01:14]} 33. Kc2 {[%emt 0:00:40]} Rd6 {[%emt 0:02:24]} 34. Re1 {[%emt 0:00:21]} 1/2-1/2

[Event "4NCL Div 1 2018-19"]
[Site "Telford"]
[Date "2019.02.10"]
[Round "6.14"]
[White "Taylor, Adam C"]
[Black "Taylor, Martin R"]
[Result "1-0"]
[ECO "A11"]
[WhiteElo "2372"]
[BlackElo "2337"]
[Annotator "NA"]
[PlyCount "81"]
[EventDate "2018.11.10"]
[EventType "team-tourn"]
[EventCountry "GBR"]
[SourceTitle "playchess.com"]
[Source "ChessBase"]
[SourceQuality "1"]
[TimeControl "40/6000+30:3000+30"]

1. Nf3 {[%emt 0:01:38]} d5 {[%emt 0:00:00]} 2. g3 {[%emt 0:00:12]} Nf6 {[%emt 0:00:00]} 3. Bg2 {[%emt 0:00:04]} Bf5 {[%emt 0:00:21]} 4. O-O {[%emt 0:00:09]} e6 {[%emt 0:01:12]} 5. c4 {[%emt 0:00:08]} c6 {[%emt 0:01:57]} 6. Nc3 {[%emt 0:00:24]} Be7 {[%emt 0:02:36]} 7. Qb3 {[%emt 0:01:34]} Qb6 {[%emt 0:02:27]} 8. d3 {[%emt 0:00:05]} Nbd7 {[%emt 0:14:17]} 9. Be3 {[%emt 0:01:51]} Qxb3 {[%emt 0:10:52]} 10. axb3 {[%emt 0:00:04]} a6 {[%emt 0:02:48]} 11. Nh4 {[%emt 0:00:07]} Bg6 {[%emt 0:06:30]} 12. h3 {[%emt 0:01:18]} O-O {[%emt 0:07:53]} 13. f4 {[%emt 0:07:16]} Ne8 {[%emt 0:03:45]} 14. Nxg6 {[%emt 0:06:02]} hxg6 {[%emt 0:00:07]} 15. Bf2 {[%emt 0:04:10]} Nc7 {[%emt 0:21:27]} 16. Na4 {[%emt 0:04:42]} Rad8 {[%emt 0:06:41]} 17. Be1 {[%emt 0:11:31]} Rfe8 {[%emt 0:05:10]} 18. Kh2 {[%emt 0:03:43]} dxc4 {[%emt 0:09:02]} 19. bxc4 {[%emt 0:01:21]} e5 {[%emt 0:00:54]} 20. Ba5 {[%emt 0:01:28]} Rc8 {[%emt 0:00:12]} 21. fxe5 {[%emt 0:02:15]} Ne6 {[%emt 0:09:25]} 22. Nb6 {[%emt 0:01:00]} Nxb6 {[%emt 0:00:13]} 23. Bxb6 {[%emt 0:00:02]} Bc5 {[%emt 0:01:36]} 24. Bxc5 {[%emt 0:00:57]} Nxc5 {[%emt 0:00:01]} 25. d4 {[%emt 0:01:33]} Nb3 {[%emt 0:00:29]} 26. Rad1 {[%emt 0:00:10]} c5 {[%emt 0:00:59]} 27. e3 {[%emt 0:01:41]} Re7 {[%emt 0:01:07]} 28. Bd5 {[%emt 0:02:37]} Na5 {[%emt 0:00:54]} 29. Rf4 {[%emt 0:03:35]} cxd4 {[%emt 0:00:40]} 30. exd4 {[%emt 0:01:36]} Nxc4 {[%emt 0:00:43]} 31. Rxf7 {[%emt 0:04:52]} Rxf7 {[%emt 0:00:16]} 32. Rf1 {[%emt 0:00:02]} Rcc7 {[%emt 0:00:32]} 33. Rxf7 {[%emt 0:00:08]} Rxf7 {[%emt 0:00:06]} 34. Bxc4 {[%emt 0:00:04]} b5 {[%emt 0:00:52]} 35. Bxf7+ {[%emt 0:00:07]} Kxf7 {[%emt 0:00:02]} 36. Kg2 {[%emt 0:00:09]} a5 {[%emt 0:00:16]} 37. Kf2 {[%emt 0:00:04]} a4 {[%emt 0:00:11]} 38. Ke2 {[%emt 0:00:20]} b4 {[%emt 0:00:27]} 39. Kd3 {[%emt 0:00:16]} a3 {[%emt 0:00:07]} 40. bxa3 {[%emt 0:00:06]} bxa3 {[%emt 0:00:01]} 41. Ke4 {[%emt 0:00:12]} 1-0

[Event "4NCL Div 1 2018-19"]
[Site "Telford"]
[Date "2019.02.10"]
[Round "6.15"]
[White "Jackson, James P"]
[Black "Houska, Jovanka"]
[Result "1/2-1/2"]
[ECO "B12"]
[WhiteElo "2383"]
[BlackElo "2424"]
[Annotator "NA"]
[PlyCount "63"]
[EventDate "2018.11.10"]
[EventType "team-tourn"]
[EventCountry "GBR"]
[SourceTitle "playchess.com"]
[Source "ChessBase"]
[SourceQuality "1"]
[TimeControl "40/6000+30:3000+30"]

1. e4 {[%emt 0:00:00]} c6 {[%emt 0:00:00]} 2. d4 {[%emt 0:00:00]} d5 {[%emt 0:00:00]} 3. e5 {[%emt 0:00:00]} Bf5 {[%emt 0:00:09]} 4. h4 {[%emt 0:00:00]} h5 {[%emt 0:00:14]} 5. Bd3 {[%emt 0:00:00]} Bxd3 {[%emt 0:00:05]} 6. Qxd3 {[%emt 0:00:00]} Qa5+ {[%emt 0:00:05]} 7. Nd2 {[%emt 0:00:30]} e6 {[%emt 0:00:09]} 8. Ngf3 {[%emt 0:00:48]} Qa6 {[%emt 0:00:28]} 9. c4 {[%emt 0:00:38]} Nh6 {[%emt 0:00:42]} 10. O-O {[%emt 0:01:24]} Nf5 {[%emt 0:02:06]} 11. b3 {[%emt 0:02:31]} Be7 {[%emt 0:01:35]} 12. g3 {[%emt 0:09:54]} Nd7 {[%emt 0:03:16]} 13. a4 {[%emt 0:03:16]} c5 {[%emt 0:05:42]} 14. Ba3 {[%emt 0:08:16]} g6 {[%emt 0:08:06]} 15. Qb1 {[%emt 0:12:47]} cxd4 {[%emt 0:10:41]} 16. cxd5 {[%emt 0:05:59]} Bxa3 {[%emt 0:02:14]} 17. dxe6 {[%emt 0:00:43]} Qxe6 {[%emt 0:00:42]} 18. Rxa3 {[%emt 0:09:27]} O-O {[%emt 0:03:16]} 19. Re1 {[%emt 0:00:43]} Rfe8 {[%emt 0:00:40]} 20. b4 {[%emt 0:04:18]} Qd5 {[%emt 0:07:10]} 21. Qe4 {[%emt 0:08:18]} Qxe4 {[%emt 0:00:07]} 22. Nxe4 {[%emt 0:03:25]} Rac8 {[%emt 0:03:45]} 23. a5 {[%emt 0:03:22]} Kg7 {[%emt 0:04:03]} 24. Neg5 {[%emt 0:07:40]} Nf8 {[%emt 0:01:41]} 25. Rb3 {[%emt 0:06:00]} Rc2 {[%emt 0:04:46]} 26. Rd1 {[%emt 0:05:01]} Rd8 {[%emt 0:04:53]} 27. Kf1 {[%emt 0:00:26]} Rd5 {[%emt 0:00:52]} 28. Re1 {[%emt 0:03:30]} Rb5 {[%emt 0:06:49]} 29. Re2 {[%emt 0:01:02]} Rc1+ {[%emt 0:00:06]} 30. Re1 {[%emt 0:02:57]} Rc2 {[%emt 0:01:04]} 31. Re2 {[%emt 0:00:07]} Rc1+ {[%emt 0:01:43]} 32. Re1 {[%emt 0:00:10]} 1/2-1/2

[Event "4NCL Div 1 2018-19"]
[Site "Telford"]
[Date "2019.02.10"]
[Round "6.16"]
[White "McDonald, Neil"]
[Black "Bhatia, Kanwal K"]
[Result "1-0"]
[ECO "C77"]
[WhiteElo "2408"]
[BlackElo "2053"]
[Annotator "NA"]
[PlyCount "75"]
[EventDate "2018.11.10"]
[EventType "team-tourn"]
[EventCountry "GBR"]
[SourceTitle "playchess.com"]
[Source "ChessBase"]
[SourceQuality "1"]
[TimeControl "40/6000+30:3000+30"]

1. e4 {[%emt 0:00:00]} e5 {[%emt 0:00:02]} 2. Nf3 {[%emt 0:00:00]} Nc6 {[%emt 0:00:12]} 3. Bb5 {[%emt 0:00:00]} a6 {[%emt 0:00:08]} 4. Ba4 {[%emt 0:00:00]} Nf6 {[%emt 0:00:20]} 5. Qe2 {[%emt 0:00:08]} b5 {[%emt 0:01:24]} 6. Bb3 {[%emt 0:00:06]} Be7 {[%emt 0:00:08]} 7. c3 {[%emt 0:00:55]} O-O {[%emt 0:00:24]} 8. d3 {[%emt 0:00:41]} d6 {[%emt 0:13:35]} 9. Nbd2 {[%emt 0:01:37]} Na5 {[%emt 0:00:49]} 10. Bc2 {[%emt 0:01:15]} c5 {[%emt 0:00:46]} 11. Nf1 {[%emt 0:01:54]} Nc6 {[%emt 0:01:15]} 12. Ng3 {[%emt 0:01:28]} Re8 {[%emt 0:04:13]} 13. O-O {[%emt 0:02:15]} Bf8 {[%emt 0:02:44]} 14. a4 {[%emt 0:05:37]} Rb8 {[%emt 0:06:48]} 15. axb5 {[%emt 0:01:16]} axb5 {[%emt 0:00:05]} 16. h3 {[%emt 0:06:17]} d5 {[%emt 0:04:32]} 17. Bg5 {[%emt 0:03:22]} Be7 {[%emt 0:05:47]} 18. d4 {[%emt 0:13:48]} cxd4 {[%emt 0:03:09]} 19. cxd4 {[%emt 0:05:39]} dxe4 {[%emt 0:01:45]} 20. Nxe4 {[%emt 0:01:48]} Nxd4 {[%emt 0:01:06]} 21. Nxd4 {[%emt 0:01:36]} Qxd4 {[%emt 0:15:28]} 22. Bxf6 {[%emt 0:13:57]} Bxf6 {[%emt 0:12:24]} 23. Qh5 {[%emt 0:14:23]} Qb6 {[%emt 0:02:53]} 24. Nxf6+ {[%emt 0:02:34]} Qxf6 {[%emt 0:00:39]} 25. Qxh7+ {[%emt 0:01:20]} Kf8 {[%emt 0:00:04]} 26. Ra7 {[%emt 0:08:08]} Bb7 {[%emt 0:05:39]} 27. Be4 {[%emt 0:02:44]} Qb6 {[%emt 0:03:25]} 28. Rfa1 {[%emt 0:05:19]} g6 {[%emt 0:08:42]} 29. Qh8+ {[%emt 0:04:36]} Ke7 {[%emt 0:00:06]} 30. Qxe5+ {[%emt 0:00:34]} Kf8 {[%emt 0:00:15]} 31. Qh8+ {[%emt 0:00:14]} Ke7 {[%emt 0:00:05]} 32. Qh4+ {[%emt 0:00:23]} g5 {[%emt 0:06:37]} 33. Qxg5+ {[%emt 0:00:40]} Kf8 {[%emt 0:00:04]} 34. Rxb7 {[%emt 0:02:18]} Rxb7 {[%emt 0:00:19]} 35. Bxb7 {[%emt 0:00:07]} Qxb7 {[%emt 0:00:04]} 36. Qh6+ {[%emt 0:00:54]} Ke7 {[%emt 0:00:32]} 37. Qh4+ {[%emt 0:01:18]} Kd7 {[%emt 0:00:48]} 38. Qd4+ {[%emt 0:00:18]} 1-0